[Event "Titled Tuesday Blitz May 4 2021"]
[White "Eggleston, Thomas A"]
[Black "Mortazavi, Ali"]
[WhiteFideId "412139"]
[BlackFideId "401323"]
[WhiteElo "2174"]
[BlackElo "2339"]
[Result "0-1"]
[Round "01"]
[TimeControl "180+1"]
[Date "2021.05.04"]
[WhiteClock "0:00:40"]
[BlackClock "0:00:22"]

1. e4 {[%clk 0:02:59]}  c6 {[%clk 0:03:00]} 2. d4 {[%clk 0:02:58]}  d5 {[%clk 0:03:00]} 3. exd5 {[%clk 0:02:59]}  cxd5 {[%clk 0:03:00]} 4. c4 {[%clk 0:03:00]}  Nf6 {[%clk 0:03:00]} 5. Nc3 {[%clk 0:03:01]}  g6 {[%clk 0:03:01]} 6. Nf3 {[%clk 0:03:00]}  Bg7 {[%clk 0:03:00]} 7. cxd5 {[%clk 0:03:01]}  Nxd5 {[%clk 0:02:57]} 8. Bb5+ {[%clk 0:02:59]}  Nc6 {[%clk 0:02:53]} 9. O-O {[%clk 0:02:51]}  O-O {[%clk 0:02:51]} 10. h3 {[%clk 0:02:48]}  Bf5 {[%clk 0:02:25]} 11. Bxc6 {[%clk 0:02:38]}  bxc6 {[%clk 0:02:25]} 12. Nh4 {[%clk 0:02:37]}  Be6 {[%clk 0:02:24]} 13. Be3 {[%clk 0:02:35]}  Nxc3 {[%clk 0:02:13]} 14. bxc3 {[%clk 0:02:35]}  Bc4 {[%clk 0:02:12]} 15. Re1 {[%clk 0:02:35]}  Qa5 {[%clk 0:02:06]} 16. Qd2 {[%clk 0:02:31]}  Bd5 {[%clk 0:01:59]} 17. Rec1 {[%clk 0:02:20]}  Qa6 {[%clk 0:01:53]} 18. Qc2 {[%clk 0:02:08]}  Bc4 {[%clk 0:01:45]} 19. Nf3 {[%clk 0:02:05]}  Rab8 {[%clk 0:01:42]} 20. Ne5 {[%clk 0:02:03]}  Bxe5 {[%clk 0:01:41]} 21. dxe5 {[%clk 0:02:02]}  Rfd8 {[%clk 0:01:39]} 22. f3 {[%clk 0:01:56]}  Qa5 {[%clk 0:01:30]} 23. Qf2 {[%clk 0:01:46]}  a6 {[%clk 0:01:19]} 24. Bc5 {[%clk 0:01:42]}  Rd7 {[%clk 0:01:08]} 25. Rd1 {[%clk 0:01:30]}  Rbd8 {[%clk 0:01:08]} 26. Rxd7 {[%clk 0:01:28]}  Rxd7 {[%clk 0:01:08]} 27. Bb4 {[%clk 0:01:15]}  Qxe5 {[%clk 0:01:06]} 28. Re1 {[%clk 0:01:14]}  Qf6 {[%clk 0:01:05]} 29. Qc5 {[%clk 0:01:09]}  Be6 {[%clk 0:00:40]} 30. Qxc6 {[%clk 0:01:07]}  Qg5 {[%clk 0:00:35]} 31. c4 {[%clk 0:00:56]}  Bxh3 {[%clk 0:00:29]} 32. f4 {[%clk 0:00:53]}  Qg3 {[%clk 0:00:26]} 33. Bc3 {[%clk 0:00:43]}  Qxc3 {[%clk 0:00:23]} 34. gxh3 {[%clk 0:00:40]}  Qxe1+ {[%clk 0:00:23]} 35. Kg2 {[%clk 0:00:40]}  Rd2+ {[%clk 0:00:22]} 0-1


[Site "https://www.chess.com"]

[Event "Titled Tuesday Blitz May 4 2021"]
[White "Elissalt Cardenas, Hector"]
[Black "Song, Michael"]
[WhiteFideId "3500632"]
[BlackFideId "2613190"]
[WhiteElo "2216"]
[BlackElo "2274"]
[Result "0-1"]
[Round "01"]
[TimeControl "180+1"]
[Date "2021.05.04"]
[WhiteClock "0:00:11"]
[BlackClock "0:00:59"]

1. d4 {[%clk 0:02:59]}  Nf6 {[%clk 0:02:59]} 2. c4 {[%clk 0:02:58]}  c5 {[%clk 0:03:00]} 3. d5 {[%clk 0:02:57]}  e6 {[%clk 0:03:00]} 4. Nc3 {[%clk 0:02:52]}  exd5 {[%clk 0:03:01]} 5. cxd5 {[%clk 0:02:52]}  d6 {[%clk 0:03:01]} 6. Nf3 {[%clk 0:02:51]}  g6 {[%clk 0:03:01]} 7. Bf4 {[%clk 0:02:51]}  a6 {[%clk 0:03:01]} 8. a4 {[%clk 0:02:50]}  Bg7 {[%clk 0:03:00]} 9. e3 {[%clk 0:02:48]}  O-O {[%clk 0:02:59]} 10. h3 {[%clk 0:02:48]}  Re8 {[%clk 0:02:57]} 11. Nd2 {[%clk 0:02:16]}  Nbd7 {[%clk 0:02:55]} 12. Be2 {[%clk 0:02:08]}  Ne5 {[%clk 0:02:51]} 13. O-O {[%clk 0:02:00]}  Nfd7 {[%clk 0:02:49]} 14. e4 {[%clk 0:01:35]}  Qc7 {[%clk 0:02:15]} 15. Qc2 {[%clk 0:01:23]}  Rb8 {[%clk 0:01:54]} 16. Bh2 {[%clk 0:00:49]}  g5 {[%clk 0:01:48]} 17. Nd1 {[%clk 0:00:42]}  Nf8 {[%clk 0:01:41]} 18. Ne3 {[%clk 0:00:41]}  Nfg6 {[%clk 0:01:41]} 19. Bg4 {[%clk 0:00:39]}  Nxg4 {[%clk 0:01:26]} 20. hxg4 {[%clk 0:00:39]}  Be5 {[%clk 0:01:18]} 21. Bxe5 {[%clk 0:00:35]}  Nxe5 {[%clk 0:01:17]} 22. f3 {[%clk 0:00:35]}  b5 {[%clk 0:01:11]} 23. axb5 {[%clk 0:00:33]}  axb5 {[%clk 0:01:11]} 24. g3 {[%clk 0:00:26]}  c4 {[%clk 0:01:11]} 25. Kg2 {[%clk 0:00:26]}  Qc5 {[%clk 0:01:08]} 26. Nf5 {[%clk 0:00:23]}  Bxf5 {[%clk 0:01:07]} 27. gxf5 {[%clk 0:00:23]}  Nd3 {[%clk 0:01:05]} 28. Ra6 {[%clk 0:00:11]}  Nb4 {[%clk 0:00:59]} 0-1


[Site "https://www.chess.com"]

[Event "Titled Tuesday Blitz May 4 2021"]
[White "Espinosa Veloz, Ermes"]
[Black "Toncheva, Nadya"]
[WhiteFideId "3507424"]
[BlackFideId "2924056"]
[WhiteElo "2333"]
[BlackElo "1920"]
[Result "1-0"]
[Round "01"]
[TimeControl "180+1"]
[Date "2021.05.04"]
[WhiteClock "0:02:09"]
[BlackClock "0:00:30"]

1. e4 {[%clk 0:03:00]}  c5 {[%clk 0:02:56]} 2. Nf3 {[%clk 0:03:00]}  Nc6 {[%clk 0:02:56]} 3. Bb5 {[%clk 0:02:59]}  e6 {[%clk 0:02:56]} 4. O-O {[%clk 0:02:57]}  Nge7 {[%clk 0:02:55]} 5. Re1 {[%clk 0:02:57]}  a6 {[%clk 0:02:55]} 6. Bxc6 {[%clk 0:02:57]}  Nxc6 {[%clk 0:02:55]} 7. Nc3 {[%clk 0:02:57]}  Be7 {[%clk 0:02:54]} 8. Nd5 {[%clk 0:02:54]}  exd5 {[%clk 0:02:38]} 9. exd5 {[%clk 0:02:54]}  O-O {[%clk 0:02:38]} 10. dxc6 {[%clk 0:02:53]}  bxc6 {[%clk 0:02:34]} 11. d3 {[%clk 0:02:51]}  Bf6 {[%clk 0:02:30]} 12. Rb1 {[%clk 0:02:48]}  Rb8 {[%clk 0:02:27]} 13. b3 {[%clk 0:02:47]}  d5 {[%clk 0:02:24]} 14. Be3 {[%clk 0:02:41]}  Bg4 {[%clk 0:01:29]} 15. Bxc5 {[%clk 0:02:35]}  Re8 {[%clk 0:01:29]} 16. Rxe8+ {[%clk 0:02:32]}  Qxe8 {[%clk 0:01:30]} 17. h3 {[%clk 0:02:32]}  Bh5 {[%clk 0:01:29]} 18. g4 {[%clk 0:02:28]}  Bg6 {[%clk 0:01:29]} 19. Qe1 {[%clk 0:02:27]}  Qd7 {[%clk 0:01:26]} 20. Bd4 {[%clk 0:02:25]}  Re8 {[%clk 0:01:10]} 21. Qd2 {[%clk 0:02:20]}  h5 {[%clk 0:01:04]} 22. Bxf6 {[%clk 0:02:19]}  hxg4 {[%clk 0:01:03]} 23. Ne5 {[%clk 0:02:18]}  Qf5 {[%clk 0:00:30]} 24. Nxg4 {[%clk 0:02:09]}  gxf6 {[%clk 0:00:30]} 25. Nh6+ {[%clk 0:02:09]} 1-0


[Site "https://www.chess.com"]

[Event "Titled Tuesday Blitz May 4 2021"]
[White "Eswaran, Ashritha"]
[Black "Laxman, R.R."]
[WhiteFideId "2080788"]
[BlackFideId "5005361"]
[WhiteElo "2391"]
[BlackElo "2476"]
[Result "0-1"]
[Round "01"]
[TimeControl "180+1"]
[Date "2021.05.04"]
[WhiteClock "0:00:38"]
[BlackClock "0:02:01"]

1. e4 {[%clk 0:03:00]}  e5 {[%clk 0:02:59]} 2. Nf3 {[%clk 0:03:00]}  Nc6 {[%clk 0:02:59]} 3. Bc4 {[%clk 0:02:56]}  Bc5 {[%clk 0:02:58]} 4. d3 {[%clk 0:02:56]}  Nf6 {[%clk 0:02:57]} 5. O-O {[%clk 0:02:56]}  a6 {[%clk 0:02:57]} 6. a4 {[%clk 0:02:56]}  O-O {[%clk 0:02:56]} 7. c3 {[%clk 0:02:56]}  d5 {[%clk 0:02:51]} 8. exd5 {[%clk 0:02:55]}  Nxd5 {[%clk 0:02:52]} 9. Re1 {[%clk 0:02:53]}  Bg4 {[%clk 0:02:51]} 10. h3 {[%clk 0:02:52]}  Bxf3 {[%clk 0:02:46]} 11. Qxf3 {[%clk 0:02:51]}  Nb6 {[%clk 0:02:46]} 12. Bb3 {[%clk 0:02:47]}  Bd6 {[%clk 0:02:46]} 13. Bc2 {[%clk 0:02:46]}  a5 {[%clk 0:02:45]} 14. Na3 {[%clk 0:02:46]}  f5 {[%clk 0:02:44]} 15. Nb5 {[%clk 0:02:46]}  Kh8 {[%clk 0:02:44]} 16. Nxd6 {[%clk 0:02:45]}  cxd6 {[%clk 0:02:44]} 17. Be3 {[%clk 0:02:44]}  d5 {[%clk 0:02:35]} 18. Bxb6 {[%clk 0:02:32]}  Qxb6 {[%clk 0:02:36]} 19. Qxd5 {[%clk 0:02:32]}  Qxb2 {[%clk 0:02:36]} 20. Qb3 {[%clk 0:02:25]}  Qxb3 {[%clk 0:02:36]} 21. Bxb3 {[%clk 0:02:26]}  Rad8 {[%clk 0:02:36]} 22. Rad1 {[%clk 0:02:25]}  Rf6 {[%clk 0:02:33]} 23. Bc4 {[%clk 0:02:23]}  Rfd6 {[%clk 0:02:33]} 24. Bb5 {[%clk 0:02:23]}  e4 {[%clk 0:02:32]} 25. d4 {[%clk 0:02:22]}  Ne7 {[%clk 0:02:29]} 26. f3 {[%clk 0:02:19]}  Nd5 {[%clk 0:02:28]} 27. fxe4 {[%clk 0:02:07]}  Nxc3 {[%clk 0:02:27]} 28. e5 {[%clk 0:02:06]}  Rd5 {[%clk 0:02:17]} 29. e6 {[%clk 0:01:36]}  Nxb5 {[%clk 0:02:15]} 30. axb5 {[%clk 0:01:34]}  Kg8 {[%clk 0:02:12]} 31. e7 {[%clk 0:01:29]}  Re8 {[%clk 0:02:12]} 32. Re6 {[%clk 0:01:24]}  Rxb5 {[%clk 0:02:06]} 33. d5 {[%clk 0:01:23]}  Kf7 {[%clk 0:02:07]} 34. Re5 {[%clk 0:01:03]}  g6 {[%clk 0:02:04]} 35. Rde1 {[%clk 0:01:01]}  Rb6 {[%clk 0:02:01]} 36. Ra1 {[%clk 0:00:42]}  Ra6 {[%clk 0:01:59]} 37. d6 {[%clk 0:00:35]}  Rxd6 {[%clk 0:01:58]} 38. Raxa5 {[%clk 0:00:35]}  Rxe7 {[%clk 0:01:59]} 39. Rxe7+ {[%clk 0:00:35]}  Kxe7 {[%clk 0:01:59]} 40. Ra7 {[%clk 0:00:35]}  Rd7 {[%clk 0:01:58]} 41. Kf2 {[%clk 0:00:36]}  b5 {[%clk 0:01:58]} 42. Ra6 {[%clk 0:00:36]}  Rb7 {[%clk 0:01:59]} 43. Ra3 {[%clk 0:00:35]}  b4 {[%clk 0:01:59]} 44. Rb3 {[%clk 0:00:36]}  Kd6 {[%clk 0:01:59]} 45. Ke3 {[%clk 0:00:37]}  Kc5 {[%clk 0:02:00]} 46. Kd3 {[%clk 0:00:38]}  Rd7+ {[%clk 0:02:01]} 47. Kc2 {[%clk 0:00:38]}  Kc4 {[%clk 0:02:01]} 0-1


[Site "https://www.chess.com"]

[Event "Titled Tuesday Blitz May 4 2021"]
[White "Fier, Alexandr"]
[Black "Shtyka, Sergey"]
[WhiteFideId "2107139"]
[BlackFideId "4138465"]
[WhiteElo "2569"]
[BlackElo "2102"]
[Result "1-0"]
[Round "01"]
[TimeControl "180+1"]
[Date "2021.05.04"]
[WhiteClock "0:00:31"]
[BlackClock "0:00:03"]

1. d4 {[%clk 0:02:59]}  c5 {[%clk 0:02:59]} 2. e4 {[%clk 0:02:58]}  cxd4 {[%clk 0:02:58]} 3. Nf3 {[%clk 0:02:58]}  d6 {[%clk 0:02:55]} 4. Nxd4 {[%clk 0:02:58]}  Nf6 {[%clk 0:02:52]} 5. Nc3 {[%clk 0:02:58]}  g6 {[%clk 0:02:49]} 6. Be3 {[%clk 0:02:58]}  Bg7 {[%clk 0:02:48]} 7. f3 {[%clk 0:02:58]}  O-O {[%clk 0:02:48]} 8. Qd2 {[%clk 0:02:58]}  Nc6 {[%clk 0:02:48]} 9. O-O-O {[%clk 0:02:58]}  d5 {[%clk 0:02:48]} 10. Nxc6 {[%clk 0:02:58]}  bxc6 {[%clk 0:02:48]} 11. Bh6 {[%clk 0:02:59]}  Bxh6 {[%clk 0:02:38]} 12. Qxh6 {[%clk 0:02:57]}  Qb6 {[%clk 0:02:34]} 13. e5 {[%clk 0:02:44]}  Nd7 {[%clk 0:02:16]} 14. h4 {[%clk 0:02:43]}  Rd8 {[%clk 0:01:45]} 15. e6 {[%clk 0:02:35]}  Nf8 {[%clk 0:01:39]} 16. exf7+ {[%clk 0:02:34]}  Kxf7 {[%clk 0:01:39]} 17. h5 {[%clk 0:02:35]}  Rb8 {[%clk 0:01:27]} 18. hxg6+ {[%clk 0:02:29]}  hxg6 {[%clk 0:01:26]} 19. b3 {[%clk 0:02:29]}  Ba6 {[%clk 0:01:19]} 20. Qf4+ {[%clk 0:02:15]}  Kg8 {[%clk 0:01:16]} 21. Bxa6 {[%clk 0:02:08]}  Qxa6 {[%clk 0:01:15]} 22. Qe5 {[%clk 0:02:09]}  Qa3+ {[%clk 0:01:06]} 23. Kb1 {[%clk 0:02:09]}  Qd6 {[%clk 0:01:06]} 24. Qh8+ {[%clk 0:01:56]}  Kf7 {[%clk 0:01:05]} 25. Rde1 {[%clk 0:01:57]}  e6 {[%clk 0:00:59]} 26. Ne2 {[%clk 0:01:46]}  d4 {[%clk 0:00:53]} 27. Nc1 {[%clk 0:01:44]}  Rb5 {[%clk 0:00:36]} 28. Nd3 {[%clk 0:01:42]}  Rf5 {[%clk 0:00:31]} 29. g4 {[%clk 0:01:41]}  Ra5 {[%clk 0:00:28]} 30. f4 {[%clk 0:01:38]}  Qa3 {[%clk 0:00:28]} 31. Rh7+ {[%clk 0:01:05]}  Nxh7 {[%clk 0:00:23]} 32. Qxh7+ {[%clk 0:01:06]}  Kf8 {[%clk 0:00:23]} 33. Qh8+ {[%clk 0:01:01]}  Ke7 {[%clk 0:00:21]} 34. Qg7+ {[%clk 0:01:00]}  Kd6 {[%clk 0:00:21]} 35. Nc1 {[%clk 0:00:44]}  c5 {[%clk 0:00:17]} 36. f5 {[%clk 0:00:40]}  gxf5 {[%clk 0:00:17]} 37. gxf5 {[%clk 0:00:41]}  Kc6 {[%clk 0:00:08]} 38. Rxe6+ {[%clk 0:00:37]}  Rd6 {[%clk 0:00:08]} 39. Qg2+ {[%clk 0:00:37]}  Kc7 {[%clk 0:00:07]} 40. Qg7+ {[%clk 0:00:32]}  Rd7 {[%clk 0:00:06]} 41. Qe5+ {[%clk 0:00:32]}  Kb7 {[%clk 0:00:05]} 42. Qe4+ {[%clk 0:00:32]}  Kc7 {[%clk 0:00:05]} 43. Qc6+ {[%clk 0:00:32]}  Kd8 {[%clk 0:00:04]} 44. Rg6 {[%clk 0:00:30]}  d3 {[%clk 0:00:03]} 45. Rg8+ {[%clk 0:00:30]}  Ke7 {[%clk 0:00:03]} 46. Qe6# {[%clk 0:00:31]} 1-0


[Site "https://www.chess.com"]

[Event "Titled Tuesday Blitz May 4 2021"]
[White "Gaboyan, Susanna"]
[Black "Pile, Richard"]
[WhiteFideId "13303627"]
[BlackFideId "624110"]
[WhiteElo "2135"]
[BlackElo "2376"]
[Result "0-1"]
[Round "01"]
[TimeControl "180+1"]
[Date "2021.05.04"]
[WhiteClock "0:00:03"]
[BlackClock "0:00:16"]

1. Nf3 {[%clk 0:03:00]}  Nf6 {[%clk 0:02:59]} 2. d3 {[%clk 0:03:01]}  d5 {[%clk 0:02:58]} 3. g3 {[%clk 0:03:02]}  Bf5 {[%clk 0:02:58]} 4. Bg2 {[%clk 0:03:02]}  e6 {[%clk 0:02:59]} 5. O-O {[%clk 0:03:03]}  h6 {[%clk 0:02:57]} 6. Nbd2 {[%clk 0:03:04]}  Be7 {[%clk 0:02:57]} 7. Qe1 {[%clk 0:03:05]}  Bh7 {[%clk 0:02:57]} 8. e4 {[%clk 0:03:06]}  O-O {[%clk 0:02:57]} 9. Qe2 {[%clk 0:03:05]}  c5 {[%clk 0:02:56]} 10. Ne5 {[%clk 0:02:42]}  Nbd7 {[%clk 0:02:50]} 11. f4 {[%clk 0:02:38]}  Rc8 {[%clk 0:02:41]} 12. Nxd7 {[%clk 0:01:59]}  Qxd7 {[%clk 0:02:42]} 13. e5 {[%clk 0:01:59]}  Ne8 {[%clk 0:02:42]} 14. g4 {[%clk 0:01:58]}  f6 {[%clk 0:02:27]} 15. f5 {[%clk 0:01:36]}  fxe5 {[%clk 0:02:16]} 16. Qxe5 {[%clk 0:01:37]}  Nc7 {[%clk 0:02:09]} 17. fxe6 {[%clk 0:01:33]}  Rxf1+ {[%clk 0:02:10]} 18. Nxf1 {[%clk 0:01:31]}  Qd8 {[%clk 0:02:05]} 19. Bf4 {[%clk 0:01:25]}  Bf6 {[%clk 0:01:56]} 20. Qd6 {[%clk 0:01:25]}  Ne8 {[%clk 0:01:57]} 21. Qxd5 {[%clk 0:01:19]}  Bxb2 {[%clk 0:01:51]} 22. Rb1 {[%clk 0:01:08]}  Bd4+ {[%clk 0:01:50]} 23. Kh1 {[%clk 0:01:08]}  Nf6 {[%clk 0:01:29]} 24. Qxb7 {[%clk 0:01:02]}  Nxg4 {[%clk 0:01:26]} 25. Qf7+ {[%clk 0:00:51]}  Kh8 {[%clk 0:01:25]} 26. Bg3 {[%clk 0:00:52]}  Bg8 {[%clk 0:01:03]} 27. Qf5 {[%clk 0:00:35]}  Nf6 {[%clk 0:00:55]} 28. Rb7 {[%clk 0:00:29]}  Qe8 {[%clk 0:00:50]} 29. e7 {[%clk 0:00:15]}  c4 {[%clk 0:00:47]} 30. Qf4 {[%clk 0:00:10]}  cxd3 {[%clk 0:00:43]} 31. cxd3 {[%clk 0:00:10]}  Bc5 {[%clk 0:00:38]} 32. Qe5 {[%clk 0:00:08]}  Ng4 {[%clk 0:00:26]} 33. Qe2 {[%clk 0:00:08]}  Nf6 {[%clk 0:00:25]} 34. Bh4 {[%clk 0:00:04]}  Bd6 {[%clk 0:00:18]} 35. Bxf6 {[%clk 0:00:04]}  gxf6 {[%clk 0:00:19]} 36. Qe3 {[%clk 0:00:03]}  Qg6 {[%clk 0:00:17]} 37. Rd7 {[%clk 0:00:02]}  Bc5 {[%clk 0:00:16]} 38. Rd8 {[%clk 0:00:03]}  Bxe3 {[%clk 0:00:16]} 39. e8=Q {[%clk 0:00:02]}  Qxe8 {[%clk 0:00:15]} 40. Rxe8 {[%clk 0:00:03]}  Rxe8 {[%clk 0:00:16]} 0-1


[Site "https://www.chess.com"]

[Event "Titled Tuesday Blitz May 4 2021"]
[White "Gabriel, Robert"]
[Black "Ward-Tsh"]
[WhiteFideId "4606477"]
[WhiteElo "2203"]
[BlackElo "2514"]
[Result "0-1"]
[Round "01"]
[TimeControl "180+1"]
[Date "2021.05.04"]
[WhiteClock "0:00:03"]
[BlackClock "0:00:24"]

1. d4 {[%clk 0:02:59]}  d5 {[%clk 0:03:00]} 2. c4 {[%clk 0:02:57]}  c6 {[%clk 0:03:00]} 3. Nf3 {[%clk 0:02:54]}  Nf6 {[%clk 0:03:00]} 4. e3 {[%clk 0:02:52]}  e6 {[%clk 0:03:00]} 5. Nbd2 {[%clk 0:02:50]}  Nbd7 {[%clk 0:02:59]} 6. Bd3 {[%clk 0:02:49]}  c5 {[%clk 0:03:00]} 7. O-O {[%clk 0:02:41]}  Bd6 {[%clk 0:02:58]} 8. b3 {[%clk 0:02:33]}  cxd4 {[%clk 0:02:55]} 9. exd4 {[%clk 0:02:31]}  O-O {[%clk 0:02:52]} 10. c5 {[%clk 0:02:27]}  Bc7 {[%clk 0:02:44]} 11. Bb2 {[%clk 0:02:25]}  a5 {[%clk 0:02:35]} 12. a3 {[%clk 0:02:23]}  Re8 {[%clk 0:02:29]} 13. Re1 {[%clk 0:02:22]}  Nf8 {[%clk 0:02:23]} 14. b4 {[%clk 0:02:21]}  Ng6 {[%clk 0:02:23]} 15. g3 {[%clk 0:02:20]}  Bd7 {[%clk 0:02:12]} 16. b5 {[%clk 0:02:18]}  a4 {[%clk 0:02:10]} 17. Qe2 {[%clk 0:02:03]}  Ba5 {[%clk 0:02:10]} 18. Rac1 {[%clk 0:01:59]}  Qc7 {[%clk 0:02:05]} 19. c6 {[%clk 0:01:51]}  bxc6 {[%clk 0:02:06]} 20. bxc6 {[%clk 0:01:50]}  Bxc6 {[%clk 0:02:07]} 21. Ne5 {[%clk 0:01:42]}  Nxe5 {[%clk 0:02:03]} 22. dxe5 {[%clk 0:01:42]}  Nd7 {[%clk 0:02:01]} 23. Rc2 {[%clk 0:01:20]}  Qb6 {[%clk 0:01:56]} 24. Rec1 {[%clk 0:01:17]}  Bb7 {[%clk 0:01:53]} 25. Bb5 {[%clk 0:01:07]}  Ba6 {[%clk 0:01:53]} 26. Bxa6 {[%clk 0:01:01]}  Qxa6 {[%clk 0:01:54]} 27. Qxa6 {[%clk 0:00:43]}  Rxa6 {[%clk 0:01:54]} 28. Nf3 {[%clk 0:00:37]}  h6 {[%clk 0:01:49]} 29. Bd4 {[%clk 0:00:31]}  Raa8 {[%clk 0:01:46]} 30. h4 {[%clk 0:00:28]}  Rab8 {[%clk 0:01:46]} 31. h5 {[%clk 0:00:21]}  Rb3 {[%clk 0:01:46]} 32. Rc8 {[%clk 0:00:18]}  Rxc8 {[%clk 0:01:46]} 33. Rxc8+ {[%clk 0:00:17]}  Kh7 {[%clk 0:01:47]} 34. Kg2 {[%clk 0:00:10]}  Rxa3 {[%clk 0:01:47]} 35. g4 {[%clk 0:00:10]}  f6 {[%clk 0:01:45]} 36. Nh4 {[%clk 0:00:06]}  g5 {[%clk 0:01:16]} 37. hxg6+ {[%clk 0:00:05]}  Kg7 {[%clk 0:01:15]} 38. Re8 {[%clk 0:00:05]}  Nxe5 {[%clk 0:00:32]} 39. Re7+ {[%clk 0:00:04]}  Kg8 {[%clk 0:00:31]} 40. Bxe5 {[%clk 0:00:03]}  fxe5 {[%clk 0:00:30]} 41. g7 {[%clk 0:00:03]}  Bd8 {[%clk 0:00:24]} 42. Rd7 {[%clk 0:00:03]}  Bxh4 {[%clk 0:00:24]} 0-1


[Site "https://www.chess.com"]

[Event "Titled Tuesday Blitz May 4 2021"]
[White "Gabrielian, Artur"]
[Black "Daniel, Damian"]
[WhiteFideId "4131002"]
[BlackFideId "1183621"]
[WhiteElo "2539"]
[BlackElo "2055"]
[Result "1-0"]
[Round "01"]
[TimeControl "180+1"]
[Date "2021.05.04"]
[WhiteClock "0:00:18"]
[BlackClock "0:00:09"]

1. e4 {[%clk 0:02:59]}  Nf6 {[%clk 0:02:59]} 2. e5 {[%clk 0:02:58]}  Nd5 {[%clk 0:02:59]} 3. d4 {[%clk 0:02:58]}  Nb6 {[%clk 0:02:59]} 4. Nf3 {[%clk 0:02:57]}  d5 {[%clk 0:02:59]} 5. Bd3 {[%clk 0:02:55]}  Bg4 {[%clk 0:02:58]} 6. h3 {[%clk 0:02:52]}  Bxf3 {[%clk 0:02:58]} 7. Qxf3 {[%clk 0:02:52]}  e6 {[%clk 0:02:59]} 8. Nd2 {[%clk 0:02:47]}  c5 {[%clk 0:02:57]} 9. c3 {[%clk 0:02:45]}  Nc6 {[%clk 0:02:56]} 10. dxc5 {[%clk 0:02:33]}  Nd7 {[%clk 0:02:30]} 11. Qg3 {[%clk 0:02:30]}  Ndxe5 {[%clk 0:02:17]} 12. Bb5 {[%clk 0:02:25]}  Ng6 {[%clk 0:02:07]} 13. Nb3 {[%clk 0:02:22]}  Be7 {[%clk 0:01:56]} 14. O-O {[%clk 0:02:10]}  O-O {[%clk 0:01:56]} 15. Re1 {[%clk 0:02:08]}  Rc8 {[%clk 0:01:49]} 16. Be3 {[%clk 0:02:04]}  Na5 {[%clk 0:01:43]} 17. Bd3 {[%clk 0:01:59]}  Nxb3 {[%clk 0:01:09]} 18. axb3 {[%clk 0:01:58]}  a6 {[%clk 0:01:10]} 19. b4 {[%clk 0:01:58]}  Bf6 {[%clk 0:01:10]} 20. b5 {[%clk 0:01:42]}  axb5 {[%clk 0:01:06]} 21. Bxb5 {[%clk 0:01:42]}  Ra8 {[%clk 0:00:49]} 22. Qd6 {[%clk 0:01:26]}  Ne7 {[%clk 0:00:39]} 23. Qxd8 {[%clk 0:01:14]}  Rfxd8 {[%clk 0:00:38]} 24. Bf4 {[%clk 0:01:12]}  d4 {[%clk 0:00:29]} 25. cxd4 {[%clk 0:01:03]}  Bxd4 {[%clk 0:00:28]} 26. Rxa8 {[%clk 0:00:57]}  Rxa8 {[%clk 0:00:28]} 27. Bd6 {[%clk 0:00:41]}  Nf5 {[%clk 0:00:24]} 28. b4 {[%clk 0:00:40]}  Ra2 {[%clk 0:00:13]} 29. Be2 {[%clk 0:00:32]}  Bc3 {[%clk 0:00:11]} 30. Bc4 {[%clk 0:00:25]}  Rb2 {[%clk 0:00:04]} 31. Ra1 {[%clk 0:00:17]}  h5 {[%clk 0:00:04]} 32. Ra8+ {[%clk 0:00:17]}  Kh7 {[%clk 0:00:05]} 33. Bd3 {[%clk 0:00:17]}  h4 {[%clk 0:00:04]} 34. g4 {[%clk 0:00:17]}  hxg3 {[%clk 0:00:04]} 35. fxg3 {[%clk 0:00:17]}  g6 {[%clk 0:00:04]} 36. Bxf5 {[%clk 0:00:15]}  Bd4+ {[%clk 0:00:04]} 37. Kf1 {[%clk 0:00:15]}  gxf5 {[%clk 0:00:05]} 38. Rb8 {[%clk 0:00:14]}  Rxb4 {[%clk 0:00:05]} 39. c6 {[%clk 0:00:14]}  Rb1+ {[%clk 0:00:05]} 40. Ke2 {[%clk 0:00:14]}  Rb2+ {[%clk 0:00:05]} 41. Kd3 {[%clk 0:00:15]}  bxc6 {[%clk 0:00:06]} 42. Kxd4 {[%clk 0:00:15]}  Rxb8 {[%clk 0:00:06]} 43. Bxb8 {[%clk 0:00:15]}  Kg6 {[%clk 0:00:06]} 44. Bf4 {[%clk 0:00:15]}  f6 {[%clk 0:00:07]} 45. Kc5 {[%clk 0:00:15]}  e5 {[%clk 0:00:07]} 46. Be3 {[%clk 0:00:15]}  f4 {[%clk 0:00:07]} 47. gxf4 {[%clk 0:00:14]}  exf4 {[%clk 0:00:07]} 48. Bxf4 {[%clk 0:00:15]}  Kh5 {[%clk 0:00:07]} 49. Bg3 {[%clk 0:00:15]}  f5 {[%clk 0:00:07]} 50. Kxc6 {[%clk 0:00:15]}  f4 {[%clk 0:00:07]} 51. Bf2 {[%clk 0:00:15]}  f3 {[%clk 0:00:07]} 52. Kd5 {[%clk 0:00:16]}  Kg5 {[%clk 0:00:08]} 53. Ke4 {[%clk 0:00:16]}  Kh5 {[%clk 0:00:08]} 54. Kxf3 {[%clk 0:00:16]}  Kg5 {[%clk 0:00:08]} 55. Kg3 {[%clk 0:00:17]}  Kh5 {[%clk 0:00:09]} 56. Be3 {[%clk 0:00:17]}  Kg6 {[%clk 0:00:09]} 57. Kg4 {[%clk 0:00:18]} 1-0


[Site "https://www.chess.com"]